bitfinex/quotes_SOLUSD_20241102
["timestamp","ask_amount","ask_price","bid_price","bid_amount"]
[1730584507108,8.10828663,166.4,166.37,21.0373]
[1730584507306,8.10828663,166.39,166.37,15.0267]
[1730584507512,8.10828663,166.38,166.37,15.0267]
[1730584509327,3.6049417,166.38,166.37,15.0267]
[1730584509528,8.10936951,166.38,166.37,15.0267]
[1730584513025,3.60488994,166.38,166.37,15.0267]
[1730584513247,8.11047827,166.38,166.37,15.0267]
[1730584516927,3.60488994,166.38,166.37,15.0267]
[1730584517139,8.1106404,166.38,166.37,15.0267]
[1730584520414,8.11072837,166.38,166.37,15.0267]
[1730584524034,21.9715,166.42,166.37,15.0267]
[1730584524240,3.60474513,166.38,166.37,15.0267]
[1730584524538,8.11071055,166.38,166.37,15.0267]
[1730584527728,8.11077926,166.38,166.37,15.0267]
[1730584528020,8.11076721,166.38,166.37,15.0267]
[1730584531330,21.9715,166.42,166.37,15.0267]
[1730584531527,8.1110431,166.38,166.37,15.0267]
[1730584532839,8.1110431,166.38,166.37,14.5267]
[1730584535118,8.11098769,166.38,166.37,14.5267]
[1730584538935,4.50594238,166.38,166.37,14.5267]
[1730584539144,8.110838,166.38,166.37,14.5267]
[1730584542329,8.11080955,166.38,166.37,14.5267]
[1730584550851,8.11080955,166.38,166.36,11.08222874]
[1730584551052,8.11080955,166.37,166.36,11.08222874]
[1730584552251,8.11080955,166.37,166.36,17.09322874]
[1730584553261,8.11039075,166.37,166.36,32.12082874]
[1730584554651,8.11039075,166.37,166.35,11.08222874]
[1730584554962,8.11039075,166.36,166.35,11.08222874]
[1730584555339,8.11039075,166.36,166.34,41.14112874]
[1730584555536,8.11039075,166.35,166.34,61.14112874]
[1730584556159,8.11039075,166.35,166.34,67.15282874]
[1730584556556,3.60457263,166.35,166.34,67.15282874]
[1730584556759,8.11039574,166.35,166.34,67.15282874]
[1730584562657,8.11040496,166.35,166.34,67.15282874]
[1730584566164,8.11043239,166.35,166.34,67.15282874]
[1730584567172,8.11038234,166.35,166.34,67.15282874]
[1730584567875,4.50585976,166.35,166.34,67.15282874]
[1730584568375,11.08222874,166.41,166.34,82.18222874]
[1730584568678,11.08222874,166.41,166.36,11.08222874]
[1730584569362,8.1103329,166.4,166.36,11.08222874]
[1730584569569,8.1103329,166.39,166.37,21.0373]
[1730584569870,8.1103329,166.38,166.37,21.0373]
[1730584571471,8.11030675,166.38,166.37,21.0373]
[1730584574257,8.11030675,166.38,166.37,15.0267]
[1730584574678,11.08222874,166.41,166.37,15.0267]
[1730584574875,8.1101891,166.38,166.37,15.0267]
[1730584575577,8.1101891,166.38,166.37,21.0373]
[1730584578884,8.1101891,166.38,166.37,15.0267]
[1730584581986,8.11007878,166.38,166.37,15.0267]
[1730584588888,3.6044301,166.38,166.37,15.0267]
[1730584589066,8.11005198,166.38,166.37,15.0267]
[1730584595882,8.11011059,166.38,166.37,15.0267]
[1730584596189,19.19233933,166.38,166.34,30.0589]
[1730584596482,8.11011059,166.37,166.34,30.0589]
[1730584596693,8.11011059,166.36,166.34,30.0589]
[1730584596869,8.11011059,166.35,166.34,30.0589]
[1730584599500,3.6044301,166.35,166.34,36.0706]
[1730584599679,8.10938597,166.35,166.34,36.0706]
[1730584602588,8.10938597,166.35,166.34,41.14112874]
[1730584603080,3.6044301,166.35,166.34,41.14112874]
[1730584603284,8.10719636,166.35,166.34,30.0589]
[1730584603992,8.10719636,166.35,166.34,36.0706]
[1730584607305,4.50327292,166.35,166.34,51.1]
[1730584607481,8.10548105,166.35,166.34,51.1]
[1730584612702,8.10548105,166.35,166.34,45.0883]
[1730584614403,8.10396005,166.35,166.34,45.0883]
[1730584618011,3.60220813,166.35,166.34,45.0883]
[1730584618300,8.10144582,166.35,166.34,45.0883]
[1730584618503,8.1012361,166.35,166.34,45.0883]
[1730584621110,11.08222874,166.39,166.34,51.1]
[1730584621412,8.10095786,166.38,166.34,51.1]
[1730584621614,8.10095786,166.37,166.34,51.1]
[1730584621804,8.10095786,166.36,166.34,51.1]
[1730584622109,8.10095786,166.35,166.34,51.1]
[1730584623294,8.10095786,166.35,166.34,45.0883]
[1730584624313,8.10089614,166.35,166.34,45.0883]
[1730584627410,8.10089614,166.35,166.34,15.0294]
[1730584629311,11.08222874,166.37,166.34,15.0294]
[1730584629692,3.60028694,166.35,166.34,15.0294]
[1730584630210,4.49981811,166.35,166.34,15.0294]
[1730584630396,8.10007942,166.35,166.34,15.0294]
[1730584630795,3.60026131,166.35,166.34,15.0294]
[1730584631111,8.09986118,166.35,166.34,15.0294]
[1730584631307,8.09985356,166.35,166.34,15.0294]
[1730584633018,3.60026131,166.35,166.34,15.0294]
[1730584633221,8.09972033,166.35,166.34,15.0294]
[1730584633804,19.18194907,166.35,166.31,21.1567126]
[1730584634008,11.08222874,166.33,166.31,21.1567126]
[1730584634199,4.49945902,166.32,166.31,21.1567126]
[1730584635716,15.58168776,166.32,166.31,21.1567126]
[1730584635905,21.59418776,166.32,166.31,0.1122126]
[1730584636605,17.09472874,166.32,166.31,0.1122126]
[1730584636918,15.57851321,166.32,166.31,0.1122126]
[1730584638614,39.35539721,166.32,166.31,0.1122126]
[1730584638920,45.36789721,166.32,166.31,0.1122126]
[1730584641708,39.35539721,166.32,166.31,0.1122126]
[1730584643711,34.85911274,166.32,166.31,0.1122126]
[1730584643910,39.34835229,166.32,166.31,0.1122126]
[1730584647213,34.85911274,166.32,166.31,0.1122126]
[1730584647412,39.34631833,166.32,166.31,0.1122126]
[1730584649708,89.68773329,166.32,166.31,0.1122126]
[1730584649925,89.78773329,166.32,166.31,0.1122126]
[1730584651007,96.19023329,166.32,166.31,0.1122126]
[1730584651317,96.1875576,166.32,166.31,0.1122126]
[1730584651707,96.0875576,166.32,166.31,0.1122126]
[1730584651922,96.1875576,166.32,166.31,0.1122126]
[1730584658414,96.18429279,166.32,166.31,0.1122126]
[1730584665009,96.18426746,166.32,166.31,0.1122126]
[1730584671739,96.08426746,166.32,166.31,0.1122126]
[1730584671926,96.18289877,166.32,166.31,0.1122126]
[1730584672326,96.18308346,166.32,166.31,0.1122126]
[1730584672843,89.88058346,166.32,166.31,0.1122126]
[1730584674241,89.8810069,166.32,166.31,0.1122126]
[1730584674549,85.4005277,166.32,166.31,0.1122126]
[1730584674846,89.88094702,166.32,166.31,0.1122126]
[1730584676452,45.55203206,166.32,166.31,0.1122126]
[1730584677334,45.45203206,166.32,166.31,0.1122126]
[1730584677637,45.55203206,166.32,166.31,0.1122126]
[1730584681744,45.45466629,166.32,166.31,0.1122126]
[1730584682052,45.55498898,166.32,166.31,0.1122126]
[1730584683348,89.88390394,166.32,166.31,0.1122126]
[1730584685234,85.4005277,166.32,166.31,0.1122126]
[1730584685450,89.88619252,166.32,166.31,0.1122126]
[1730584686735,0.1,166.3,166.28,0.11578531]
[1730584686942,15.56789356,166.29,166.28,0.11578531]
[1730584687156,39.34477756,166.29,166.28,0.11578531]
[1730584688036,45.35827756,166.29,166.28,0.11578531]
[1730584688849,49.85394421,166.29,166.28,0.11578531]
[1730584691444,40.87261274,166.29,166.28,0.11578531]
[1730584691982,49.85774201,166.29,166.28,0.11578531]
[1730584692550,45.36864932,166.29,166.28,0.11578531]
[1730584692747,49.85753573,166.29,166.28,0.11578531]
[1730584694353,49.95753573,166.29,166.28,0.11578531]
[1730584696161,45.36864932,166.29,166.28,0.11578531]
[1730584696351,49.95899504,166.29,166.28,0.11578531]
[1730584696554,54.45419337,166.29,166.28,0.11578531]
[1730584696762,54.35419337,166.29,166.28,0.11578531]
[1730584696962,54.45419337,166.29,166.28,0.11578531]
[1730584699169,54.35419337,166.29,166.28,0.11578531]
[1730584699353,54.45419337,166.29,166.28,0.11578531]
[1730584699857,54.45319654,166.29,166.28,0.11578531]
[1730584701050,54.35319654,166.29,166.28,0.11578531]
[1730584701971,49.85715996,166.29,166.28,0.11578531]
[1730584703463,54.35049957,166.29,166.28,0.11578531]
[1730584710463,49.8577804,166.29,166.28,0.11578531]
[1730584710651,54.35287255,166.29,166.28,0.11578531]
[1730584710855,58.84687377,166.29,166.28,0.11578531]
[1730584711978,54.35167544,166.29,166.28,0.11578531]
[1730584714151,49.85781301,166.29,166.28,0.11578531]
[1730584714582,54.35194375,166.29,166.28,0.11578531]
[1730584717668,49.86113004,166.29,166.28,0.11578531]
[1730584717863,54.35312148,166.29,166.28,0.11578531]
[1730584719774,54.35312148,166.29,166.23,6.0157]
[1730584720083,11.08222874,166.26,166.23,6.0157]
[1730584720270,8.98657843,166.25,166.23,6.0157]
[1730584720474,8.98657843,166.24,166.23,6.0157]
[1730584721358,8.98758064,166.24,166.23,6.0157]
[1730584726580,8.99148145,166.24,166.23,6.0157]
[1730584728372,8.9950388,166.24,166.23,6.0157]
[1730584735693,8.99676234,166.24,166.23,6.0157]
[1730584738878,11.08222874,166.26,166.23,6.0157]
[1730584739190,8.99907525,166.25,166.23,6.0157]
[1730584739396,8.99907525,166.24,166.23,6.0157]
[1730584745081,4.50061822,166.24,166.23,6.0157]
[1730584745280,13.50011208,166.24,166.23,6.0157]
[1730584747680,13.50084544,166.24,166.23,6.0157]
[1730584748787,13.50141485,166.24,166.23,6.0157]
[1730584750311,13.50141485,166.24,166.21,15.2909]
[1730584750515,4.49990459,166.23,166.22,21.0564]
[1730584752308,4.50124557,166.23,166.22,21.0564]
[1730584756192,4.50180058,166.23,166.22,21.0564]
[1730584765213,4.50180058,166.23,166.22,20.5564]
[1730584766914,4.50277457,166.23,166.22,20.5564]
[1730584768703,4.50277457,166.23,166.21,15.2909]
[1730584768922,4.50277457,166.22,166.19,15.0428]
[1730584769237,4.50277457,166.21,166.18,12.3928]
[1730584769534,4.50277457,166.2,166.18,38.51892874]
[1730584769722,4.50277457,166.19,166.18,38.51892874]
[1730584769934,4.50277457,166.19,166.18,36.01892874]
[1730584770137,4.50042682,166.19,166.18,36.01892874]
[1730584770630,19.19783921,166.19,166.18,36.01892874]
[1730584771610,11.69915942,166.19,166.18,36.01892874]
[1730584773639,4.50042682,166.19,166.18,36.01892874]
[1730584774429,11.08222874,166.23,166.18,36.01892874]
[1730584774725,4.49689351,166.22,166.18,24.9367]
[1730584774931,4.49689351,166.21,166.18,24.9367]
[1730584775127,4.49689351,166.2,166.18,24.9367]
[1730584775324,4.49637161,166.19,166.18,24.9367]
[1730584775526,4.49637161,166.19,166.18,21.0614]
[1730584775713,4.49637161,166.19,166.16,6.0181]
[1730584775914,4.49637161,166.18,166.16,6.0181]
[1730584776119,4.49637161,166.17,166.16,6.0181]
[1730584776326,4.49637161,166.17,166.15,15.0464]
[1730584776533,11.08222874,166.18,166.15,15.0464]
[1730584776715,4.49279209,166.17,166.15,15.0464]
[1730584776922,11.08222874,166.21,166.15,32.14722874]
[1730584777133,43.90122212,166.28,166.15,32.14722874]
[1730584777134,11.08222874,166.25,166.19,11.08222874]
[1730584777343,4.49322426,166.24,166.19,11.08222874]
[1730584777513,4.49322426,166.24,166.19,26.20392874]
[1730584777833,4.49322426,166.23,166.21,11.08222874]
[1730584778026,4.49322426,166.22,166.21,17.09862874]
[1730584778812,4.49322426,166.22,166.21,32.22032874]
[1730584779628,270.18222874,166.29,166.21,47.26152874]
[1730584779818,11.08222874,166.29,166.23,11.08222874]
[1730584780329,11.08222874,166.29,166.23,17.09772874]
[1730584780837,11.08222874,166.28,166.23,6.0155]
[1730584783819,11.08222874,166.27,166.23,6.0155]
[1730584786819,17.09652874,166.27,166.23,6.0155]
[1730584787019,17.09652874,166.27,166.22,6.0161]
[1730584788033,11.08222874,166.26,166.22,6.0161]
[1730584789753,11.08222874,166.26,166.22,21.0564]
[1730584794633,11.08222874,166.26,166.2,11.08222874]
[1730584794634,11.08222874,166.23,166.2,6.0168]
[1730584794838,11.08222874,166.23,166.19,31.4706]
[1730584795034,11.08222874,166.23,166.19,37.4877]
[1730584798127,11.08222874,166.23,166.19,31.4706]
[1730584798334,11.08222874,166.22,166.19,15.0426]
[1730584798637,11.08222874,166.22,166.18,6.0174]
[1730584798638,11.08222874,166.21,166.16,21.0635]
[1730584800048,6.0162,166.22,166.16,32.14572874]
[1730584800049,17.09842874,166.22,166.16,32.14572874]
[1730584800952,17.09842874,166.22,166.17,11.08222874]
[1730584801152,17.09842874,166.22,166.17,17.09982874]
[1730584802057,17.09842874,166.22,166.17,32.14462874]
[1730584802250,17.09842874,166.22,166.17,21.0624]
[1730584806034,11.08222874,166.22,166.17,21.0624]
[1730584808358,11.08222874,166.22,166.17,32.14462874]
[1730584808760,11.08222874,166.23,166.17,32.14462874]
[1730584809061,11.08222874,166.22,166.17,32.14462874]
[1730584809259,11.08222874,166.22,166.17,21.0624]
[1730584810358,17.09862874,166.22,166.17,21.0624]
[1730584810554,11.08222874,166.22,166.17,21.0624]
[1730584811153,11.08222874,166.22,166.17,32.14462874]
[1730584811339,3.59559916,166.21,166.17,32.14462874]
[1730584811539,3.59559916,166.2,166.17,32.14462874]
[1730584811747,3.59559916,166.19,166.17,32.14462874]
[1730584811949,11.08222874,166.23,166.17,21.0624]
[1730584812757,6.2744,166.27,166.19,11.08222874]
[1730584812758,11.08222874,166.25,166.19,11.08222874]
[1730584813664,3.59534151,166.24,166.2,21.0589]
[1730584813861,14.67757025,166.24,166.2,21.0589]
[1730584814159,3.59534151,166.23,166.2,21.0589]
[1730584814362,3.59534151,166.22,166.2,21.0589]
[1730584814542,3.59534151,166.21,166.2,21.0589]
[1730584815758,3.59534151,166.21,166.2,15.0421]
[1730584816846,3.59516593,166.21,166.2,15.0421]
[1730584817270,3.59516593,166.21,166.2,21.0589]
[1730584818875,3.59516593,166.21,166.2,15.0421]
[1730584821568,3.09516593,166.21,166.2,21.0589]
[1730584823777,11.08222874,166.25,166.2,21.0589]
[1730584826479,11.08222874,166.26,166.2,21.0589]
[1730584826795,11.08222874,166.26,166.2,15.0421]
[1730584834681,11.08222874,166.26,166.2,15.0421]
[1730584836386,11.08222874,166.25,166.2,13.5421]
[1730584838481,11.08222874,166.25,166.2,19.5589]
[1730584843299,11.08222874,166.25,166.2,19.0589]
[1730584859777,11.08222874,166.26,166.2,19.0589]
[1730584863194,17.09682874,166.26,166.2,19.0589]
[1730584869908,17.09682874,166.26,166.2,13.0421]
[1730584882695,38.1614348,166.31,166.2,13.0421]
[1730584882696,11.08222874,166.25,166.2,13.0421]
[1730584888699,11.08222874,166.26,166.2,13.0421]
[1730584889008,11.08222874,166.26,166.2,19.0589]
[1730584908340,11.08222874,166.27,166.2,46.15492874]
[1730584908716,11.08222874,166.27,166.21,11.08222874]
[1730584909426,11.08222874,166.26,166.22,21.0564]
[1730584913747,11.08222874,166.26,166.22,15.0403]
[1730584916836,17.09612874,166.28,166.22,26.12252874]
[1730584917046,17.09612874,166.28,166.22,32.13862874]
[1730584921949,6.0139,166.28,166.23,11.08222874]
[1730584923754,6.0139,166.28,166.24,11.08222874]
[1730584925542,6.0139,166.28,166.23,11.08222874]
[1730584926047,4.49974436,166.27,166.23,11.08222874]
[1730584926250,4.49974436,166.26,166.23,11.08222874]
[1730584926430,4.49974436,166.25,166.23,11.08222874]
[1730584926629,4.49974436,166.24,166.23,17.09792874]
[1730584927151,6.0139,166.28,166.23,17.09792874]
[1730584927345,4.49963955,166.24,166.23,17.09792874]
[1730584931854,4.49933781,166.24,166.23,17.09792874]
[1730584938035,6.0135,166.29,166.23,17.09792874]
[1730584938248,4.50106979,166.24,166.23,17.09792874]
[1730584944258,4.50005909,166.24,166.23,17.09792874]
[1730584948667,6.0142,166.28,166.23,17.09792874]
[1730584948846,4.49862793,166.27,166.23,17.09792874]
[1730584949047,4.49862793,166.26,166.23,17.09792874]
[1730584949255,4.49862793,166.25,166.23,11.08222874]
[1730584949442,4.49862793,166.24,166.23,11.08222874]
[1730584949644,4.49862793,166.24,166.23,17.09792874]
[1730584952172,4.49846362,166.24,166.23,17.09792874]
[1730584952670,4.49839785,166.24,166.23,17.09792874]
[1730584956652,4.49839785,166.24,166.22,26.12252874]
[1730584956974,4.49839785,166.23,166.22,26.12252874]
[1730584959359,4.49735359,166.23,166.22,32.13862874]
[1730584962966,6.0141,166.28,166.22,32.13862874]
[1730584963282,6.0141,166.28,166.23,11.08222874]
[1730584963487,4.49771804,166.27,166.23,11.08222874]
[1730584963782,4.49771804,166.26,166.23,11.08222874]
[1730584963989,4.49771804,166.25,166.23,11.08222874]
[1730584964289,4.49771804,166.24,166.23,11.08222874]
[1730584965494,4.49771804,166.24,166.23,17.09792874]
[1730584966491,6.0143,166.27,166.23,17.09792874]
[1730584966690,4.49846634,166.24,166.23,17.09792874]
[1730584974798,11.08222874,166.29,166.23,17.09792874]
[1730584974989,6.0139,166.28,166.23,17.09792874]
[1730584975593,34.85911274,166.27,166.22,15.0403]
[1730584975892,11.08222874,166.23,166.19,15.0425]
[1730584977094,17.09792874,166.23,166.19,15.0425]
[1730584977272,3.59822618,166.22,166.19,15.0425]
[1730584977472,3.59830623,166.21,166.19,15.0425]
[1730584977691,3.59830623,166.2,166.19,15.0425]
[1730584978197,8.09630017,166.2,166.19,15.0425]
[1730584978996,8.09630017,166.2,166.19,21.0597]
[1730584980284,8.09630017,166.2,166.19,26.12472874]
[1730584980689,4.49799394,166.2,166.19,26.12472874]
[1730584980889,8.09431649,166.2,166.19,26.12472874]
[1730584981091,8.09431649,166.2,166.19,15.0425]
[1730584982285,8.09431649,166.2,166.19,21.0597]
[1730584983300,3.59632255,166.2,166.19,21.0597]
[1730584983492,8.08975396,166.2,166.19,21.0597]
[1730584983696,6.0157,166.23,166.19,21.0597]
[1730584983879,8.08814516,166.2,166.19,21.0597]
[1730584984085,4.49341398,166.2,166.19,21.0597]
[1730584984389,8.08814516,166.2,166.19,26.12472874]
[1730584984603,8.08754418,166.2,166.19,26.12472874]
[1730584985608,8.08754418,166.2,166.19,32.14192874]
[1730584986982,6.0157,166.23,166.19,32.14192874]
[1730584987187,3.59354044,166.2,166.19,32.14192874]
[1730584987504,8.08546599,166.2,166.19,32.14192874]
[1730584990201,8.08546599,166.2,166.19,11.08222874]
[1730584990501,3.59354044,166.2,166.17,6.0178]
[1730584990716,4.49101154,166.2,166.17,6.0178]
[1730584990880,4.49101154,166.19,166.17,6.0178]
[1730584991086,4.49101154,166.18,166.17,6.0178]
[1730584991497,4.49101154,166.18,166.17,11.08222874]
[1730584991702,6.0158,166.23,166.17,11.08222874]
[1730584992005,4.49058281,166.22,166.18,11.08222874]
[1730584992210,4.49058281,166.21,166.19,11.08222874]
[1730584992390,4.49058281,166.2,166.19,11.08222874]
[1730584993614,4.49058281,166.2,166.19,17.09942874]
[1730584994116,17.09692874,166.26,166.19,32.14242874]
[1730584994299,4.49056747,166.2,166.19,21.0602]
[1730584994615,4.49049576,166.2,166.19,32.14242874]
[1730584995617,4.49049576,166.2,166.19,21.0602]
[1730584996724,17.09782874,166.24,166.19,21.0602]
[1730584996904,4.49052823,166.23,166.19,21.0602]
[1730584997094,4.49052823,166.22,166.19,15.043]
[1730584997293,4.49052823,166.21,166.19,15.043]
[1730584997513,4.49052823,166.2,166.19,15.043]
[1730584998215,23.776884,166.19,166.14,11.69444134]
[1730584998409,4.49052823,166.18,166.14,0.6122126]
[1730584998605,4.49052823,166.17,166.14,17.71334134]
[1730584998809,23.776884,166.19,166.14,17.71334134]
[1730584999005,4.4891516,166.18,166.14,17.71334134]
[1730584999193,29.794184,166.19,166.14,17.71334134]
[1730584999896,21.67,166.21,166.16,11.08222874]
[1730585000095,27.6864,166.21,166.16,11.08222874]
[1730585000600,11.08222874,166.23,166.18,11.08222874]
[1730585000913,23.776884,166.22,166.18,11.08222874]
[1730585001797,6.0158,166.23,166.18,17.09952874]
[1730585001999,6.0158,166.23,166.18,32.14342874]
[1730585002822,11.08222874,166.22,166.18,21.0612]
[1730585002993,11.08222874,166.22,166.18,15.0439]
[1730585003419,17.09802874,166.23,166.18,15.0439]
[1730585004322,17.09802874,166.23,166.18,21.0614]
[1730585006401,34.85911274,166.22,166.16,11.08222874]
[1730585006720,11.08222874,166.19,166.15,21.0652]
[1730585007409,11.08222874,166.19,166.15,15.0466]
[1730585008413,11.08222874,166.18,166.14,6.6311126]
[1730585008622,34.85911274,166.17,166.14,0.6122126]
[1730585008794,0.1,166.19,166.14,0.6122126]
[1730585008795,34.85911274,166.15,166.14,0.6122126]
[1730585010404,40.87771274,166.15,166.14,0.6122126]
[1730585016598,0.2,166.12,166.04,26.13842874]
[1730585016803,34.85911274,166.08,166.03,17.10512874]
[1730585017000,23.776884,166.08,166.04,11.08222874]
[1730585017234,23.776884,166.09,166.05,11.08222874]
[1730585017729,23.776884,166.1,166.05,11.08222874]
[1730585017906,34.85911274,166.1,166.05,11.08222874]
[1730585018718,40.87971274,166.1,166.04,17.10442874]
[1730585018923,11.08222874,166.09,166.03,32.16262874]
[1730585019112,23.776884,166.08,166.03,32.16262874]
[1730585019701,11.08222874,166.08,166.03,32.16262874]
[1730585019903,23.776884,166.07,166.03,32.16262874]
[1730585020298,34.85911274,166.05,165.99,15.0604]
[1730585020528,11.08222874,166.04,165.99,15.0604]
[1730585020824,23.776884,166.03,165.99,15.0604]
[1730585021215,11.08222874,166.06,166.01,11.08222874]
[1730585021418,23.776884,166.06,166.03,11.08222874]
[1730585021909,23.776884,166.06,166.02,11.08222874]
[1730585022110,23.776884,166.06,166.01,11.08222874]
[1730585022724,23.776884,166.06,166.02,6.0233]
[1730585024025,32.88642874,166.07,166.02,6.0233]
[1730585024026,23.776884,166.07,166.02,32.16392874]
[1730585024735,23.776884,166.05,166.02,21.0817]
[1730585024927,23.776884,166.03,165.99,15.061]
[1730585025124,34.85911274,166.03,165.99,15.061]
[1730585026006,40.88221274,166.03,165.99,15.061]
[1730585026527,34.85911274,166.01,165.97,0.6122126]
[1730585026718,11.08222874,166.01,165.97,0.6122126]
[1730585027037,23.776884,166.0,165.97,0.6122126]
[1730585027826,11.08222874,166.02,165.97,0.6122126]
[1730585027827,23.776884,166.01,165.97,0.6122126]
[1730585028211,29.800784,166.01,165.97,0.6122126]
[1730585028731,40.88301274,166.01,165.97,0.6122126]
[1730585029026,23.776884,165.99,165.97,0.6122126]
[1730585030909,23.776884,166.0,165.97,0.6122126]
[1730585031223,11.08222874,166.04,165.98,11.08222874]
[1730585031427,17.10442874,166.05,165.99,11.08222874]
[1730585031633,11.08222874,166.04,165.98,11.08222874]
[1730585031813,11.08222874,166.03,165.97,32.78214134]
[1730585033015,23.776884,166.03,165.98,11.08222874]
[1730585033631,11.08222874,166.04,165.98,11.08222874]
[1730585033938,17.10462874,166.05,165.99,11.08222874]
[1730585034124,17.10462874,166.05,165.99,21.0855]
[1730585034932,34.85911274,166.04,165.99,21.0855]
[1730585035738,34.85911274,166.04,165.99,15.0611]
[1730585037718,23.776884,166.04,165.99,15.0611]
[1730585038841,11.08222874,166.03,165.99,15.0611]
[1730585039131,11.08222874,166.02,165.99,15.0611]
[1730585039339,23.776884,166.01,165.99,15.0611]
[1730585039835,23.776884,166.02,165.99,15.0611]
[1730585040638,23.276884,166.02,165.99,21.0855]
[1730585041745,17.10502874,166.04,165.99,21.0855]
[1730585042235,17.10502874,166.04,165.99,15.0611]
[1730585042731,23.776884,166.04,165.99,26.14332874]
[1730585042923,23.776884,166.04,166.0,11.08222874]
[1730585043432,23.776884,166.04,165.99,26.14332874]
[1730585043622,11.08222874,166.04,165.99,26.14332874]
[1730585043817,23.776884,166.03,165.99,32.16772874]
[1730585044439,34.85911274,166.03,165.99,21.0855]
[1730585045123,34.85911274,166.04,165.99,21.0855]
[1730585047444,11.08222874,166.02,165.99,15.0611]
[1730585047738,23.776884,166.0,165.98,6.0248]
[1730585047943,34.85911274,166.0,165.97,0.6122126]
[1730585048120,23.776884,165.98,165.97,0.6122126]
[1730585052134,40.88391274,165.98,165.97,0.6122126]
[1730585052349,41.08391274,165.98,165.97,0.6122126]
[1730585052550,0.2,165.96,165.88,32.18102874]
[1730585052853,11.08222874,165.94,165.88,32.18102874]
[1730585053019,23.776884,165.98,165.92,11.08222874]
[1730585053222,11.08222874,166.01,165.96,11.08222874]
[1730585053425,32.68862874,166.03,165.97,11.08222874]
[1730585053725,11.08222874,166.04,165.98,11.08222874]
[1730585053940,11.08222874,166.06,166.01,11.08222874]
[1730585054125,17.56972874,166.07,166.01,11.08222874]
[1730585054326,17.56972874,166.07,165.96,51.2165]
[1730585054327,11.18222874,166.07,165.96,51.2165]
[1730585054533,11.18222874,166.07,166.02,11.08222874]
[1730585054932,11.08222874,166.05,165.99,11.08222874]
[1730585056247,23.776884,166.04,166.0,6.024]
[1730585056934,23.776884,166.04,166.0,17.10622874]
[1730585057138,23.776884,166.04,166.0,32.16642874]
[1730585057744,23.776884,166.05,166.0,32.16642874]
[1730585059551,23.776884,166.05,165.99,11.08222874]
[1730585060147,29.799284,166.05,165.99,11.08222874]
[1730585061556,29.799284,166.05,166.0,6.024]
[1730585062238,40.88151274,166.05,165.99,32.16712874]
[1730585062442,23.776884,166.03,165.98,17.10692874]
[1730585062632,34.85911274,166.03,165.97,11.08222874]
[1730585063530,23.776884,166.03,165.98,11.08222874]
[1730585063736,23.776884,166.01,165.98,11.08222874]
[1730585064746,23.776884,166.01,165.97,11.08222874]
[1730585066461,23.776884,166.01,165.96,32.17112874]
[1730585067279,40.88241274,166.02,165.96,15.0637]
[1730585067438,23.776884,166.0,165.96,15.0637]
[1730585068160,23.776884,166.0,165.96,26.14592874]
[1730585068460,23.776884,166.01,165.96,26.14592874]
[1730585068758,23.776884,165.99,165.96,26.14592874]
[1730585070261,23.776884,165.99,165.95,11.08222874]
[1730585071561,23.776884,165.99,165.95,17.10782874]
[1730585072556,23.776884,165.99,165.95,6.0256]
[1730585073455,23.776884,165.99,165.94,21.0914]
[1730585074255,4.45901114,165.98,165.94,21.0914]
[1730585074453,23.776884,165.99,165.94,21.0914]
[1730585074780,23.776884,165.97,165.94,21.0914]
[1730585078349,4.46997346,165.96,165.94,21.0914]
[1730585078538,23.776884,165.97,165.94,21.0914]
[1730585078845,4.46999115,165.96,165.94,21.0914]
[1730585079043,23.776884,165.97,165.94,21.0914]
[1730585079345,4.47019018,165.96,165.94,21.0914]
[1730585079558,23.776884,165.97,165.94,21.0914]
[1730585079735,4.47237773,165.96,165.94,21.0914]
[1730585079942,6.023,166.03,165.94,21.0914]
[1730585080139,28.24935817,166.02,165.94,21.0914]
[1730585080343,23.776884,166.0,165.94,21.0914]
[1730585080643,4.47247417,165.99,165.94,21.0914]
[1730585080839,28.24935817,165.98,165.94,21.0914]
[1730585081053,4.47247417,165.97,165.94,21.0914]
[1730585081363,23.776884,166.0,165.94,21.0914]
[1730585081559,4.47566535,165.96,165.94,21.0914]
[1730585081759,23.776884,165.98,165.94,21.0914]
[1730585081941,4.47575508,165.97,165.94,21.0914]
[1730585082143,4.47575508,165.96,165.94,21.0914]
[1730585082447,4.47575508,165.95,165.94,21.0914]
[1730585084980,4.47575508,165.95,165.94,41.0914]
[1730585085267,0.1,166.05,165.94,82.30492874]
[1730585085466,4.48049907,166.04,166.0,11.08222874]
[1730585085765,4.48049907,166.03,166.0,11.08222874]
[1730585085945,4.48049907,166.02,166.0,11.08222874]